fUSD/lending_fUSD_20240301
["ID","MTS","AMOUNT","RATE_DAILY","PERIOD"]
[315900849,1709255445683,-3950.25,0.00021917,2]
[315900850,1709255445692,-615.87,0.00021917,2]
[315900851,1709255445701,-688.01,0.00021917,2]
[315900852,1709255445710,-500.0,0.00021917,2]
[315900853,1709255445724,-540.93,0.00021917,2]
[315900854,1709255445733,-925.72,0.00021917,2]
[315900855,1709255445742,-500.0,0.00021917,2]
[315900856,1709255445751,-2181.14,0.00021917,2]
[315900857,1709255445760,-500.0,0.00021917,2]
[315900858,1709255445770,-500.0,0.00021917,2]
[315900859,1709255445779,-603.6,0.00021917,2]
[315900860,1709255445788,-500.0,0.00021917,2]
[315900861,1709255445797,-954.89,0.00021917,2]
[315900862,1709255445806,-551.92,0.00021917,2]
[315900863,1709255445815,-500.0,0.00021917,2]
[315900864,1709255445824,-877.99,0.00021917,2]
[315900865,1709255445833,-1631.18,0.00021917,2]
[315900866,1709255445842,-660.51,0.00021917,2]
[315900867,1709255445851,-500.0,0.00021917,2]
[315900868,1709255445861,-500.0,0.00021917,2]
[315900869,1709255445871,-500.0,0.00021917,2]
[315900870,1709255445880,-500.0,0.00021917,2]
[315900871,1709255445889,-500.0,0.00021917,2]
[315900872,1709255445898,-155.59,0.00021918,2]
[315900873,1709255445908,-163.37,0.00021918,2]
[315900874,1709255445917,-151.0,0.00021918,2]
[315900875,1709255445926,-151.0,0.00021918,2]
[315900876,1709255445935,-243.871376,0.00021918,2]
[315900877,1709255445944,-155.479384,0.00021918,2]
[315900878,1709255445953,-500.0,0.00021918,2]
[315900879,1709255445962,-500.0,0.00021918,2]
[315900880,1709255445974,-500.0,0.00021918,2]
[315900881,1709255445983,-500.0,0.00021918,2]
[315900882,1709255445992,-500.0,0.00021918,2]
[315900883,1709255446001,-500.0,0.00021918,2]
[315900884,1709255446010,-500.0,0.00021918,2]
[315900885,1709255446019,-500.0,0.00021918,2]
[315900886,1709255446028,-500.0,0.00021918,2]
[315900887,1709255446037,-500.0,0.00021918,2]
[315900888,1709255446046,-164.57,0.00021918,2]
[315900889,1709255446055,-505.989315,0.00021918,2]
[315900890,1709255446065,-505.989315,0.00021918,2]
[315900891,1709255446074,-505.989315,0.00021918,2]
[315900893,1709255446083,-505.989315,0.00021918,2]
[315900894,1709255446092,-505.989315,0.00021918,2]
[315900895,1709255446101,-505.989315,0.00021918,2]
[315900896,1709255446110,-505.989315,0.00021918,2]
[315900897,1709255446119,-505.989315,0.00021918,2]
[315900898,1709255446129,-505.989315,0.00021918,2]
[315900899,1709255446137,-505.989315,0.00021918,2]
[315900900,1709255446146,-182.329986,0.00021918,2]
[315900901,1709255446155,-151.0,0.00021918,2]
[315900902,1709255446165,-151.0,0.00021918,2]
[315900903,1709255446174,-151.0,0.00021918,2]
[315900904,1709255446183,-151.0,0.00021918,2]
[315900905,1709255446192,-151.0,0.00021918,2]
[315900906,1709255446201,-1000.0,0.00021918,2]
[315900907,1709255446210,-1000.0,0.00021918,2]
[315900908,1709255446220,-1000.0,0.00021918,2]
[315900909,1709255446229,-1000.0,0.00021918,2]
[315900910,1709255446238,-1000.0,0.00021918,2]
[315900911,1709255446247,-1000.0,0.00021918,2]
[315900912,1709255446257,-1000.0,0.00021918,2]
[315900913,1709255446266,-1000.0,0.00021918,2]
[315900914,1709255446275,-1000.0,0.00021918,2]
[315900915,1709255446284,-1000.0,0.00021918,2]
[315900916,1709255446293,-155.65,0.00021918,2]
[315900917,1709255446301,-151.0,0.00021918,2]
[315900918,1709255446311,-151.0,0.00021918,2]
[315900919,1709255446320,-151.0,0.00021918,2]
[315900920,1709255446330,-155.0,0.00021918,2]
[315900921,1709255446339,-24906.65705773,0.00021938,2]
[315900922,1709255446349,-200.0,0.00021944,2]
[315900923,1709255446358,-800.0,0.00021944,2]
[315900924,1709255446367,-200.0,0.00021944,2]
[315900925,1709255446377,-200.0,0.00021944,2]
[315900926,1709255446386,-200.0,0.00021944,2]
[315900927,1709255446395,-800.0,0.00021945,2]
[315900928,1709255446405,-200.0,0.00021945,2]
[315900929,1709255446414,-200.0,0.00021945,2]
[315900930,1709255446423,-200.0,0.00021945,2]
[315900931,1709255446432,-200.0,0.00021945,2]
[315900932,1709255446441,-200.0,0.00021945,2]
[315900933,1709255446451,-200.0,0.00021945,2]
[315900934,1709255446460,-200.0,0.00021945,2]
[315900935,1709255446473,-800.0,0.00021945,2]
[315900936,1709255446482,-800.0,0.00021945,2]
[315900937,1709255446493,-200.0,0.00021945,2]
[315900938,1709255446502,-200.0,0.00021945,2]
[315900939,1709255446511,-200.0,0.00021945,2]
[315900940,1709255446520,-200.0,0.00021945,2]
[315900941,1709255446530,-500.0,0.00021945,2]
[315900942,1709255446539,-200.0,0.00021945,2]
[315900943,1709255446549,-64248.523021,0.00021968,2]
[315900944,1709255446558,-78030.308175,0.00021968,2]
[315900945,1709255446569,-500.0,0.00021968,3]
[315900946,1709255446578,-500.0,0.00021968,3]
[315900947,1709255446587,-505.989315,0.00021968,7]
[315900948,1709255446597,-505.989315,0.00021968,7]
[315900949,1709255446606,-151.0,0.00021968,7]
[315900950,1709255446615,-1000.0,0.00021968,7]
[315900951,1709255446624,-1000.0,0.00021968,7]
[315900952,1709255446634,-2500.0,0.00022,2]
[315900953,1709255446643,-242.3928473,0.00022,4]
[315900954,1709255446652,-270.2511835,0.00022,2]
[315900955,1709255446661,-612.22022329,0.00022,2]
[315900956,1709255446671,-155.0,0.00022,2]
[315900957,1709255446791,-8340.55523625,0.00022,2]
[315900958,1709255446801,-4800.0,0.00022,10]
[315900959,1709255446810,-20000.0,0.00022,2]
[315900960,1709255446820,-1700.5971703,0.00022,7]
[315900961,1709255446829,-3000.0,0.00022,2]
[315900962,1709255446839,-299.4028297,0.00022,7]
[315900963,1709255446848,-1000.0,0.00022,2]
[315900964,1709255446859,-1000.0,0.00022,2]
[315900965,1709255446868,-2800.0,0.00022,3]
[315900966,1709255446877,-1000.0,0.00022,2]
[315900967,1709255446887,-1000.0,0.00022,2]
[315900968,1709255446897,-581.58791505,0.00022007,2]
[315900969,1709255446907,-169.56181109,0.00022009,2]
[315900970,1709255446917,-682.7396,0.00022011,2]
[315900971,1709255446926,-368.9276,0.00022011,2]
[315900972,1709255446936,-164.57,0.00022033,2]
[315900973,1709255446945,-155.59,0.0002204,2]
[315900974,1709255446955,-360.0,0.00022082,2]
[315900975,1709255446966,-5000.0,0.00022107,2]
[315900976,1709255446975,-500.0,0.00022108,3]
[315900977,1709255446984,-500.0,0.00022108,3]
[315900978,1709255446994,-5000.0,0.00022108,2]
[315900979,1709255447003,-5000.0,0.00022108,2]
[315900980,1709255447013,-5000.0,0.00022108,2]
[315900981,1709255447022,-5000.0,0.00022108,2]
[315900982,1709255447031,-5000.0,0.00022108,2]
[315900983,1709255447041,-5000.0,0.00022108,2]
[315900984,1709255447050,-5000.0,0.00022109,2]
[315900985,1709255447060,-3191.51,0.0002211,2]
[315900986,1709255447069,-5000.0,0.0002211,2]
[315900987,1709255447078,-505.989315,0.0002211,7]
[315900988,1709255447087,-505.989315,0.0002211,7]
[315900989,1709255447096,-830.768937,0.0002211,7]
[315900990,1709255447106,-5000.0,0.00022111,2]
[315900991,1709255447115,-5000.0,0.00022111,2]
[315900992,1709255447124,-300.0,0.00022111,2]
[315900993,1709255447134,-300.0,0.00022111,2]
[315900994,1709255447143,-1000.0,0.00022111,7]
[315900995,1709255447152,-1000.0,0.00022111,7]
[315900996,1709255447161,-5000.0,0.00022113,2]
[315900997,1709255447170,-5000.0,0.00022113,2]
[315900998,1709255447179,-5000.0,0.00022113,2]
[315900999,1709255447189,-5000.0,0.00022114,2]
[315901000,1709255447198,-5000.0,0.00022114,2]
[315901001,1709255447208,-5000.0,0.00022115,2]
[315901002,1709255447217,-5000.0,0.00022116,2]
[315901003,1709255447227,-5000.0,0.00022117,2]
[315901004,1709255447236,-5000.0,0.00022117,2]
[315901005,1709255447246,-5000.0,0.00022118,2]
[315901006,1709255447255,-5000.0,0.00022118,2]
[315901007,1709255447264,-5000.0,0.00022118,2]
[315901008,1709255447273,-5000.0,0.00022119,2]
[315901009,1709255447283,-5000.0,0.0002212,2]
[315901010,1709255447292,-5000.0,0.0002212,2]
[315901011,1709255447301,-266854.13117458,0.00022121,2]
[315901012,1709255447311,-5000.0,0.00022121,2]
[315901013,1709255447320,-5000.0,0.00022121,2]
[315901014,1709255447329,-500.0,0.00022121,3]
[315901015,1709255447338,-500.0,0.00022121,3]
[315901016,1709255447348,-505.989315,0.00022121,7]
[315901017,1709255447357,-505.989315,0.00022121,7]
[315901018,1709255447366,-1000.0,0.00022121,7]
[315901019,1709255447376,-1000.0,0.00022121,7]
[315901020,1709255447385,-5000.0,0.00022121,2]
[315901021,1709255447394,-830.768937,0.00022121,7]
[315901022,1709255447404,-2286.91554192,0.00022122,3]
[315901023,1709255447413,-5000.0,0.00022122,2]
[315901024,1709255447423,-5000.0,0.00022122,2]
[315901025,1709255447432,-5000.0,0.00022122,2]
[315901026,1709255447442,-5000.0,0.00022122,2]
[315901027,1709255447451,-5000.0,0.00022123,2]
[315901028,1709255447460,-5000.0,0.00022123,2]
[315901029,1709255447471,-5000.0,0.00022123,2]
[315901030,1709255447481,-5000.0,0.00022123,2]
[315901031,1709255447490,-5000.0,0.00022124,2]
[315901032,1709255447500,-5000.0,0.00022125,2]
[315901033,1709255447510,-5000.0,0.00022125,2]
[315901034,1709255447521,-5000.0,0.00022125,2]
[315901035,1709255447531,-5000.0,0.00022125,2]
[315901036,1709255447541,-5000.0,0.00022127,2]
[315901037,1709255447551,-5000.0,0.00022128,2]
[315901038,1709255447562,-5000.0,0.00022128,2]
[315901039,1709255447572,-5000.0,0.00022129,2]
[315901040,1709255447584,-5000.0,0.0002213,2]
[315901041,1709255447594,-5000.0,0.0002213,2]
[315901042,1709255447604,-5000.0,0.00022131,2]
[315901043,1709255447616,-5000.0,0.00022131,2]
[315901044,1709255447627,-5000.0,0.00022131,2]
[315901045,1709255447637,-5000.0,0.00022132,2]
[315901046,1709255447647,-5000.0,0.00022132,2]
[315901047,1709255447657,-5000.0,0.00022132,2]
[315901048,1709255447667,-5000.0,0.00022132,2]
[315901049,1709255447677,-5000.0,0.00022132,2]
[315901050,1709255447688,-5000.0,0.00022134,2]
[315901051,1709255447702,-5000.0,0.00022134,2]
[315901052,1709255447713,-5000.0,0.00022134,2]
[315901053,1709255447731,-5000.0,0.00022134,2]
[315901054,1709255447742,-5000.0,0.00022134,2]
[315901055,1709255447755,-5000.0,0.00022134,2]
[315901056,1709255447767,-523.23301761,0.00022135,2]
[315901057,1709255447779,-5000.0,0.00022135,2]
[315901058,1709255447792,-5000.0,0.00022135,2]
[315901059,1709255447804,-5000.0,0.00022135,2]
[315901060,1709255447816,-2000.0,0.00022136,2]
[315901061,1709255447827,-200.0,0.00022136,2]
[315901062,1709255447839,-500.0,0.00022136,3]
[315901063,1709255447851,-500.0,0.00022136,3]
[315901064,1709255447862,-505.989315,0.00022136,7]
[315901065,1709255447873,-505.989315,0.00022136,7]
[315901066,1709255447884,-1000.0,0.00022136,7]
[315901067,1709255447897,-1000.0,0.00022136,7]
[315901068,1709255447908,-830.768937,0.00022136,7]
[315901069,1709255447920,-5000.0,0.00022137,2]
[315901070,1709255447931,-5000.0,0.00022137,2]
[315901071,1709255447943,-5000.0,0.00022137,2]
[315901072,1709255447954,-5000.0,0.00022137,2]
[315901073,1709255447965,-5000.0,0.00022138,2]
[315901074,1709255447985,-5000.0,0.0002214,2]
[315901075,1709255448001,-5000.0,0.0002214,2]
[315901076,1709255448013,-5000.0,0.0002214,2]
[315901077,1709255448025,-5000.0,0.00022142,2]
[315901078,1709255448036,-5000.0,0.00022143,2]
[315901079,1709255448046,-5000.0,0.00022144,2]
[315901080,1709255448057,-5000.0,0.00022144,2]
[315901081,1709255448067,-5000.0,0.00022146,2]
[315901082,1709255448077,-5000.0,0.00022146,2]
[315901083,1709255448088,-5000.0,0.00022147,2]
[315901084,1709255448101,-5000.0,0.00022147,2]
[315901085,1709255448112,-5000.0,0.00022147,2]
[315901086,1709255448123,-5000.0,0.00022148,2]
[315901087,1709255448133,-164.57,0.00022149,2]
[315901088,1709255448144,-5000.0,0.00022149,2]
[315901089,1709255448154,-5000.0,0.0002215,2]
[315901090,1709255448164,-5000.0,0.0002215,2]
[315901091,1709255448175,-5000.0,0.00022151,2]
[315901092,1709255448184,-5000.0,0.00022152,2]
[315901093,1709255448194,-5000.0,0.00022152,2]
[315901094,1709255448204,-5000.0,0.00022153,2]
[315901095,1709255448214,-5000.0,0.00022153,2]
[315901097,1709255448230,-5000.0,0.00022153,2]
[315901098,1709255448240,-5000.0,0.00022153,2]
[315901100,1709255448250,-5000.0,0.00022153,2]
[315901101,1709255448260,-5000.0,0.00022154,2]
[315901102,1709255448270,-5000.0,0.00022154,2]
[315901103,1709255448279,-5000.0,0.00022155,2]
[315901104,1709255448289,-5000.0,0.00022155,2]
[315901105,1709255448299,-5000.0,0.00022155,2]
[315901106,1709255448309,-155.59,0.00022161,2]
[315901107,1709255448320,-10065.41966001,0.00022189,2]
[315901108,1709255448330,-500.0,0.00022189,3]
[315901109,1709255448340,-500.0,0.00022189,3]
[315901110,1709255448350,-505.989315,0.00022189,7]
[315901111,1709255448360,-505.989315,0.00022189,7]
[315901112,1709255448370,-830.768941,0.00022189,7]
[315901113,1709255448380,-2528.58,0.00022191,2]
[315901114,1709255448390,-1471.09614071,0.00022191,2]
[315901115,1709255448401,-414.76204346,0.00022191,2]
[315901116,1709255448411,-1009.31,0.00022191,2]
[315901117,1709255448420,-500.0,0.00022191,2]
[315901118,1709255448430,-665.94,0.00022191,2]
[315901119,1709255448439,-500.0,0.00022191,2]
[315901120,1709255448449,-500.0,0.00022191,2]
[315901121,1709255448460,-500.0,0.00022191,2]
[315901122,1709255448472,-500.0,0.00022191,2]
[315901123,1709255448481,-500.0,0.00022191,2]
[315901124,1709255448491,-500.0,0.00022191,2]
[315901125,1709255448500,-473.80713962,0.00022191,2]
[315901126,1709255448509,-500.0,0.00022191,2]
[315901127,1709255448520,-558.44494383,0.00022191,2]
[315901128,1709255448530,-500.0,0.00022191,2]
[315901129,1709255448539,-500.0,0.00022191,2]
[315901130,1709255448549,-500.0,0.00022191,2]
[315901131,1709255448558,-500.0,0.00022191,2]
[315901132,1709255448568,-500.0,0.00022191,2]
[315901133,1709255448578,-500.0,0.00022191,2]
[315901134,1709255448589,-500.0,0.00022191,2]
[315901135,1709255448599,-1636.67,0.00022191,2]
[315901136,1709255448608,-500.0,0.00022191,2]
[315901137,1709255448619,-500.0,0.00022191,2]
[315901138,1709255448629,-500.0,0.00022191,2]
[315901139,1709255448638,-500.0,0.00022191,2]
[315901140,1709255448648,-500.0,0.00022191,2]
[315901141,1709255448657,-500.0,0.00022191,2]
[315901142,1709255448667,-500.0,0.00022191,2]
[315901143,1709255448677,-500.0,0.00022191,2]
[315901144,1709255448687,-500.0,0.00022191,2]
[315901145,1709255448696,-500.0,0.00022191,2]
[315901146,1709255448710,-227.61456371,0.00022191,2]
[315901147,1709255448720,-414.44216841,0.00022191,2]
[315901148,1709255448730,-369.89512751,0.00022191,2]
[315901149,1709255448739,-500.0,0.00022191,2]
[315901150,1709255448749,-500.0,0.00022191,2]
[315901151,1709255448759,-500.0,0.00022191,2]
[315901152,1709255448770,-500.0,0.00022191,2]
[315901153,1709255448780,-500.0,0.00022191,2]
[315901154,1709255448790,-500.0,0.00022191,2]
[315901155,1709255448800,-500.0,0.00022191,2]
[315901156,1709255448809,-396.55366791,0.00022191,2]
[315901157,1709255448819,-240.2448527,0.00022191,2]
[315901158,1709255448828,-500.0,0.00022191,2]
[315901159,1709255448838,-500.0,0.00022191,2]
[315901160,1709255448848,-500.0,0.00022191,2]
[315901161,1709255448857,-500.0,0.00022191,2]
[315901162,1709255448867,-500.0,0.00022191,2]
[315901163,1709255448876,-500.0,0.00022191,2]
[315901164,1709255448885,-500.0,0.00022191,2]
[315901165,1709255448895,-500.0,0.00022191,2]
[315901166,1709255448904,-500.0,0.00022191,2]
[315901167,1709255448914,-500.0,0.00022191,2]
[315901168,1709255448923,-500.0,0.00022191,2]
[315901169,1709255448932,-500.0,0.00022191,2]
[315901170,1709255448941,-500.0,0.00022191,2]
[315901171,1709255448951,-500.0,0.00022191,2]
[315901172,1709255448960,-500.0,0.00022191,2]
[315901173,1709255448970,-500.0,0.00022191,2]
[315901174,1709255448979,-274.52,0.00022191,2]
[315901175,1709255448988,-500.0,0.00022191,2]
[315901176,1709255448997,-500.0,0.00022191,2]
[315901177,1709255449006,-500.0,0.00022191,2]
[315901178,1709255449016,-500.0,0.00022191,2]
[315901179,1709255449288,-500.0,0.00022191,2]
[315901180,1709255449307,-500.0,0.00022191,2]
[315901181,1709255449316,-500.0,0.00022191,2]
[315901182,1709255449325,-500.0,0.00022191,2]
[315901183,1709255449335,-521.52601567,0.00022191,2]
[315901184,1709255449344,-500.0,0.00022191,2]
[315901185,1709255449355,-500.0,0.00022191,2]
[315901186,1709255449363,-270.29019098,0.00022191,2]
[315901187,1709255449373,-530.94,0.00022191,2]
[315901188,1709255449381,-500.0,0.00022191,2]
[315901189,1709255449391,-500.0,0.00022191,2]
[315901190,1709255449400,-500.0,0.00022191,2]
[315901191,1709255449409,-500.0,0.00022191,2]
[315901192,1709255449418,-500.0,0.00022191,2]
[315901193,1709255449427,-500.0,0.00022191,2]
[315901194,1709255449437,-500.0,0.00022191,2]
[315901195,1709255449448,-500.0,0.00022191,2]
[315901196,1709255449457,-500.0,0.00022191,2]
[315901197,1709255449468,-500.0,0.00022191,2]
[315901198,1709255449477,-500.0,0.00022191,2]
[315901199,1709255449487,-500.0,0.00022191,2]
[315901200,1709255449497,-500.0,0.00022191,2]
[315901201,1709255449506,-500.0,0.00022191,2]
[315901202,1709255449515,-500.0,0.00022191,2]
[315901203,1709255449527,-500.0,0.00022191,2]
[315901204,1709255449536,-500.0,0.00022191,2]
[315901205,1709255449545,-500.0,0.00022191,2]
[315901206,1709255449555,-500.0,0.00022191,2]
[315901207,1709255449564,-500.0,0.00022191,2]
[315901208,1709255449574,-500.0,0.00022191,2]
[315901209,1709255449583,-500.0,0.00022191,2]
[315901210,1709255449593,-500.0,0.00022191,2]
[315901211,1709255449602,-500.0,0.00022191,2]
[315901212,1709255449611,-500.0,0.00022191,2]
[315901213,1709255449620,-500.0,0.00022191,2]
[315901214,1709255449629,-571.77,0.00022191,2]
[315901215,1709255449638,-500.0,0.00022191,2]
[315901216,1709255449647,-500.0,0.00022191,2]
[315901217,1709255449657,-500.0,0.00022191,2]
[315901218,1709255449667,-500.0,0.00022191,2]
[315901219,1709255449679,-500.0,0.00022191,2]
[315901220,1709255449690,-500.0,0.00022191,2]
[315901221,1709255449699,-1167.52,0.00022191,2]
[315901222,1709255449708,-500.0,0.00022191,2]
[315901223,1709255449720,-500.0,0.00022191,2]
[315901224,1709255449729,-500.0,0.00022191,2]
[315901225,1709255449738,-500.0,0.00022191,2]
[315901226,1709255449748,-500.0,0.00022191,2]
[315901227,1709255449759,-500.0,0.00022191,2]
[315901228,1709255449768,-500.0,0.00022191,2]
[315901229,1709255449777,-500.0,0.00022191,2]
[315901230,1709255449787,-500.0,0.00022191,2]
[315901231,1709255449796,-500.0,0.00022191,2]
[315901232,1709255449805,-500.0,0.00022191,2]
[315901233,1709255449815,-500.0,0.00022191,2]
[315901234,1709255449824,-1159.31,0.00022191,2]
[315901235,1709255449834,-500.0,0.00022191,2]
[315901236,1709255449843,-500.0,0.00022191,2]
[315901237,1709255449852,-500.0,0.00022191,2]
[315901238,1709255449862,-763.0,0.00022191,2]
[315901239,1709255449871,-500.0,0.00022191,2]
[315901240,1709255449880,-500.0,0.00022191,2]
[315901241,1709255449890,-500.0,0.00022191,2]
[315901242,1709255449900,-500.0,0.00022191,2]
[315901243,1709255449910,-500.0,0.00022191,2]
[315901244,1709255449919,-500.0,0.00022191,2]
[315901245,1709255449929,-500.0,0.00022191,2]
[315901246,1709255449938,-500.0,0.00022191,2]
[315901247,1709255449947,-500.0,0.00022191,2]
[315901248,1709255449957,-519.81,0.00022191,2]
[315901249,1709255449966,-500.0,0.00022191,2]
[315901250,1709255449980,-500.0,0.00022191,2]
[315901251,1709255449990,-500.0,0.00022191,2]
[315901252,1709255449999,-500.0,0.00022191,2]
[315901253,1709255450009,-500.0,0.00022191,2]
[315901254,1709255450018,-500.0,0.00022191,2]
[315901255,1709255450028,-500.0,0.00022191,2]
[315901256,1709255450037,-500.0,0.00022191,2]
[315901257,1709255450047,-500.0,0.00022191,2]
[315901258,1709255450057,-500.0,0.00022191,2]
[315901259,1709255450066,-564.42,0.00022191,2]
[315901260,1709255450075,-500.0,0.00022191,2]
[315901261,1709255450084,-500.0,0.00022191,2]
[315901262,1709255450094,-500.0,0.00022191,2]
[315901263,1709255450103,-500.0,0.00022191,2]
[315901264,1709255450113,-500.0,0.00022191,2]
[315901265,1709255450123,-500.0,0.00022191,2]
[315901266,1709255450133,-500.0,0.00022191,2]
[315901267,1709255450143,-500.0,0.00022191,2]
[315901268,1709255450154,-500.0,0.00022191,2]
[315901269,1709255450163,-500.0,0.00022191,2]
[315901270,1709255450173,-500.0,0.00022191,2]
[315901271,1709255450182,-500.0,0.00022191,2]
[315901272,1709255450192,-500.0,0.00022191,2]
[315901273,1709255450201,-500.0,0.00022191,2]
[315901274,1709255450210,-500.0,0.00022191,2]
[315901275,1709255450221,-500.0,0.00022191,2]
[315901276,1709255450231,-500.0,0.00022191,2]
[315901277,1709255450240,-500.0,0.00022191,2]
[315901278,1709255450249,-420.67646646,0.00022191,2]
[315901279,1709255450258,-500.0,0.00022191,2]
[315901280,1709255450267,-500.0,0.00022191,2]
[315901281,1709255450276,-500.0,0.00022191,2]
[315901282,1709255450286,-604.86,0.00022191,2]
[315901283,1709255450295,-500.0,0.00022191,2]
[315901284,1709255450305,-500.0,0.00022191,2]
[315901285,1709255450314,-1153.06,0.00022191,2]
[315901286,1709255450324,-500.0,0.00022191,2]
[315901287,1709255450333,-500.0,0.00022191,2]
[315901288,1709255450342,-500.0,0.00022191,2]
[315901289,1709255450351,-500.0,0.00022191,2]
[315901290,1709255450360,-500.0,0.00022191,2]
[315901291,1709255450369,-500.0,0.00022191,2]
[315901292,1709255450378,-500.0,0.00022191,2]
[315901293,1709255450387,-500.0,0.00022191,2]
[315901294,1709255450397,-500.0,0.00022191,2]
[315901295,1709255450406,-500.0,0.00022191,2]
[315901296,1709255450416,-500.0,0.00022191,2]
[315901297,1709255450425,-500.0,0.00022191,2]
[315901298,1709255450435,-500.0,0.00022191,2]
[315901299,1709255450444,-500.0,0.00022191,2]
[315901300,1709255450453,-500.0,0.00022191,2]
[315901301,1709255450463,-500.0,0.00022191,2]
[315901302,1709255450474,-658.45,0.00022191,2]
[315901303,1709255450483,-500.0,0.00022191,2]
[315901304,1709255450493,-500.0,0.00022191,2]
[315901305,1709255450502,-619.16750053,0.00022191,2]
[315901306,1709255450512,-181.67438016,0.00022191,2]
[315901307,1709255450522,-500.0,0.00022191,2]
[315901308,1709255450531,-500.0,0.00022191,2]
[315901309,1709255450541,-500.0,0.00022191,2]
[315901310,1709255450550,-500.0,0.00022191,2]
[315901311,1709255450559,-582.65,0.00022191,2]
[315901312,1709255450570,-500.0,0.00022191,2]
[315901313,1709255450579,-500.0,0.00022191,2]
[315901314,1709255450589,-500.0,0.00022191,2]
[315901315,1709255450598,-500.0,0.00022191,2]
[315901316,1709255450608,-500.0,0.00022191,2]
[315901317,1709255450617,-500.0,0.00022191,2]
[315901318,1709255450626,-500.0,0.00022191,2]
[315901319,1709255450635,-500.0,0.00022191,2]
[315901320,1709255450644,-500.0,0.00022191,2]
[315901321,1709255450653,-500.0,0.00022191,2]
[315901322,1709255450663,-541.61,0.00022191,2]
[315901323,1709255450672,-500.0,0.00022191,2]
[315901324,1709255450682,-500.0,0.00022191,2]
[315901325,1709255450692,-500.0,0.00022191,2]
[315901326,1709255450703,-500.0,0.00022191,2]
[315901327,1709255450713,-500.0,0.00022191,2]
[315901328,1709255450723,-500.0,0.00022191,2]
[315901329,1709255450733,-500.0,0.00022191,2]
[315901330,1709255450743,-500.0,0.00022191,2]
[315901331,1709255450752,-606.11,0.00022191,2]
[315901332,1709255450761,-500.0,0.00022191,2]
[315901333,1709255450771,-500.0,0.00022191,2]
[315901334,1709255450781,-500.0,0.00022191,2]
[315901335,1709255450790,-500.0,0.00022191,2]
[315901336,1709255450799,-500.0,0.00022191,2]
[315901337,1709255450808,-586.85,0.00022191,2]
[315901338,1709255450818,-500.0,0.00022191,2]
[315901339,1709255450827,-500.0,0.00022191,2]
[315901340,1709255450836,-1190.02,0.00022191,2]
[315901341,1709255450846,-504.74,0.00022191,2]
[315901342,1709255450856,-500.0,0.00022191,2]
[315901343,1709255450865,-500.0,0.00022191,2]
[315901344,1709255450876,-500.0,0.00022191,2]
[315901345,1709255450886,-500.0,0.00022191,2]
[315901346,1709255450895,-546.21,0.00022191,2]
[315901347,1709255450905,-500.0,0.00022191,2]
[315901348,1709255450914,-629.07,0.00022191,2]
[315901349,1709255450923,-500.0,0.00022191,2]
[315901350,1709255450932,-500.0,0.00022191,2]
[315901351,1709255450942,-500.0,0.00022191,2]